fUST/lending_fUST_20240615
["ID","MTS","AMOUNT","RATE_DAILY","PERIOD"]
[329586927,1718463043276,-215.75285839,0.00016417,2]
[329586928,1718463043301,-182.1267037,0.00016417,2]
[329586929,1718463043332,-310.0,0.00016417,2]
[329586930,1718463043376,-1806.53489008,0.00016418,2]
[329586931,1718463043414,-310.0,0.00016435,2]
[329586932,1718463043451,-303.49251712,0.00016435,2]
[329586933,1718463043506,-156.9902577,0.00016435,2]
[329586934,1718463043519,-659.92725719,0.00016435,2]
[329586935,1718463043531,-272.51996637,0.00016435,2]
[329586936,1718463043585,-524.64907675,0.00016435,2]
[329586937,1718463043596,-692.60306892,0.00016435,2]
[329586938,1718463043620,-11696.08515893,0.00016435,2]
[329586939,1718463043634,-186.60100242,0.00016435,2]
[329586940,1718463043645,-352.91075159,0.00016435,2]
[329586943,1718463043662,-552.71924724,0.00016435,2]
[329586946,1718463043676,-508.7817912,0.00016435,2]
[329586949,1718463043722,-500.0,0.00016438,2]
[329586951,1718463043740,-500.0,0.00016438,2]
[329586956,1718463043789,-500.0,0.00016438,2]
[329586958,1718463043808,-500.0,0.00016438,2]
[329586961,1718463043826,-500.0,0.00016438,2]
[329586963,1718463043842,-500.0,0.00016438,2]
[329586965,1718463043865,-500.0,0.00016438,2]
[329586966,1718463043896,-500.0,0.00016438,2]
[329586969,1718463043910,-588.52849861,0.00016438,2]
[329586970,1718463043930,-500.0,0.00016438,2]
[329586971,1718463043971,-500.0,0.00016438,2]
[329586972,1718463043984,-500.0,0.00016438,2]
[329586973,1718463043996,-500.0,0.00016438,2]
[329586975,1718463044007,-500.0,0.00016438,2]
[329586976,1718463044019,-500.0,0.00016438,2]
[329586977,1718463044030,-500.0,0.00016438,2]
[329586979,1718463044042,-500.0,0.00016438,2]
[329586981,1718463044067,-500.0,0.00016438,2]
[329586983,1718463044088,-500.0,0.00016438,2]
[329586986,1718463044137,-500.0,0.00016438,2]
[329586988,1718463044150,-500.0,0.00016438,2]
[329586990,1718463044169,-500.0,0.00016438,2]
[329586992,1718463044181,-500.0,0.00016438,2]
[329586994,1718463044194,-500.0,0.00016438,2]
[329586998,1718463044227,-500.0,0.00016438,2]
[329587000,1718463044275,-500.0,0.00016438,2]
[329587004,1718463044309,-500.0,0.00016438,2]
[329587007,1718463044333,-500.0,0.00016438,2]
[329587009,1718463044348,-305.16458433,0.00016438,2]
[329587011,1718463044370,-500.0,0.00016438,2]
[329587013,1718463044383,-500.0,0.00016438,2]
[329587016,1718463044402,-551.39871038,0.00016438,2]
[329587018,1718463044415,-500.0,0.00016438,2]
[329587020,1718463044444,-500.0,0.00016438,2]
[329587022,1718463044459,-500.0,0.00016438,4]
[329587025,1718463044507,-500.0,0.00016438,2]
[329587027,1718463044519,-500.0,0.00016438,2]
[329587029,1718463044540,-500.0,0.00016438,2]
[329587031,1718463044554,-506.65264297,0.00016438,2]
[329587033,1718463044586,-500.0,0.00016438,2]
[329587035,1718463044601,-500.0,0.00016438,2]
[329587038,1718463044621,-577.36,0.00016438,2]
[329587040,1718463044633,-500.0,0.00016438,2]
[329587042,1718463044648,-500.0,0.00016438,2]
[329587045,1718463044672,-503.42359992,0.00016438,2]
[329587048,1718463044700,-500.0,0.00016438,2]
[329587050,1718463044721,-500.0,0.00016438,2]
[329587054,1718463044744,-500.0,0.00016438,2]
[329587057,1718463044759,-500.0,0.00016438,2]
[329587059,1718463044792,-500.0,0.00016438,2]
[329587061,1718463044844,-500.0,0.00016438,2]
[329587064,1718463044893,-503.9960561,0.00016438,2]
[329587065,1718463044914,-500.0,0.00016438,2]
[329587066,1718463044926,-500.0,0.00016438,2]
[329587067,1718463044941,-500.0,0.00016438,2]
[329587068,1718463044969,-523.67355859,0.00016438,2]
[329587069,1718463045010,-232.90020918,0.00016438,2]
[329587070,1718463045034,-500.0,0.00016438,2]
[329587071,1718463045055,-500.0,0.00016438,2]
[329587072,1718463045091,-500.0,0.00016438,2]
[329587073,1718463045116,-338.29776753,0.00016438,2]
[329587074,1718463045129,-417.56673026,0.00016438,2]
[329587075,1718463045145,-500.0,0.00016438,2]
[329587076,1718463045159,-500.0,0.00016438,2]
[329587077,1718463045183,-500.0,0.00016438,2]
[329587078,1718463045211,-255.05773097,0.00016438,2]
[329587079,1718463045228,-500.0,0.00016438,2]
[329587080,1718463045250,-554.35740239,0.00016438,2]
[329587081,1718463045262,-500.0,0.00016438,2]
[329587082,1718463045276,-500.0,0.00016438,2]
[329587083,1718463045289,-485.80637509,0.00016438,2]
[329587084,1718463045309,-500.0,0.00016438,2]
[329587085,1718463045341,-407.34114668,0.00016438,2]
[329587086,1718463045366,-500.0,0.00016438,2]
[329587087,1718463045379,-505.96167504,0.00016438,2]
[329587088,1718463045416,-500.0,0.00016438,2]
[329587090,1718463045437,-500.0,0.00016438,2]
[329587093,1718463045487,-500.0,0.00016438,2]
[329587094,1718463045508,-500.0,0.00016438,2]
[329587095,1718463045528,-505.82639184,0.00016438,2]
[329587096,1718463045541,-633.25434302,0.00016438,2]
[329587097,1718463045730,-500.0,0.00016438,2]
[329587098,1718463045745,-498.90161469,0.00016438,2]
[329587099,1718463045761,-500.0,0.00016438,2]
[329587100,1718463045779,-500.0,0.00016438,2]
[329587101,1718463045805,-500.0,0.00016438,2]
[329587102,1718463045830,-500.0,0.00016438,2]
[329587103,1718463045842,-500.0,0.00016438,2]
[329587104,1718463045854,-500.0,0.00016438,2]
[329587106,1718463045890,-500.0,0.00016438,2]
[329587108,1718463045902,-500.0,0.00016438,2]
[329587109,1718463045926,-500.0,0.00016438,2]
[329587111,1718463045949,-500.0,0.00016438,2]
[329587114,1718463045978,-500.0,0.00016438,2]
[329587115,1718463045990,-407.80515652,0.00016438,2]
[329587117,1718463046005,-157.10478909,0.00016438,2]
[329587120,1718463046040,-287.67886533,0.00016438,2]
[329587122,1718463046057,-4246.59,0.00016438,2]
[329587123,1718463046103,-173.60199901,0.00016438,2]
[329587125,1718463046137,-500.0,0.00016438,2]
[329587126,1718463046162,-500.0,0.00016438,2]
[329587128,1718463046212,-500.0,0.00016438,2]
[329587129,1718463046233,-1297.17,0.00016438,2]
[329587130,1718463046254,-2331.43,0.00016438,2]
[329587131,1718463046270,-500.0,0.00016438,2]
[329587132,1718463046294,-3039.6,0.00016438,2]
[329587133,1718463046307,-500.0,0.00016438,2]
[329587134,1718463046328,-297.72764992,0.00016438,2]
[329587135,1718463046364,-920.74,0.00016438,2]
[329587136,1718463046413,-558.85927847,0.00016438,2]
[329587149,1718463049635,-2.80344682,0.00016438,2]
[329587151,1718463049692,-1259.24,0.00016438,2]
[329587152,1718463049704,-500.0,0.00016438,2]
[329587154,1718463049739,-500.0,0.00016438,2]
[329587155,1718463049753,-500.0,0.00016438,2]
[329587157,1718463049799,-500.0,0.00016438,2]
[329587158,1718463049828,-3071.48,0.00016438,2]
[329587159,1718463049860,-500.0,0.00016438,2]
[329587160,1718463049889,-500.0,0.00016438,2]
[329587161,1718463049912,-867.34,0.00016438,2]
[329587162,1718463049925,-500.0,0.00016438,2]
[329587163,1718463049941,-985.32,0.00016438,2]
[329587164,1718463049962,-500.0,0.00016438,2]
[329587165,1718463049974,-970.53,0.00016438,2]
[329587166,1718463049986,-500.0,0.00016438,2]
[329587167,1718463050038,-500.0,0.00016438,2]
[329587168,1718463050063,-500.0,0.00016438,2]
[329587169,1718463050076,-500.0,0.00016438,2]
[329587170,1718463050112,-500.0,0.00016438,2]
[329587171,1718463050160,-916.19,0.00016438,2]
[329587172,1718463050208,-1703.8,0.00016438,2]
[329587173,1718463050225,-500.0,0.00016438,2]
[329587174,1718463050237,-300.0,0.000165,2]
[329587175,1718463050248,-500.012,0.00016507,2]
[329587176,1718463050261,-1750.0,0.00016507,2]
[329587177,1718463050273,-310.0,0.0001671,2]
[329587178,1718463050285,-54464.881811,0.00016711,2]
[329587179,1718463050295,-1031.22912785,0.00016712,13]
[329587192,1718463051175,-2698.8,0.00016712,13]
[329587195,1718463051393,-1772.29930919,0.00016712,13]
[329587196,1718463051680,-3173.030899,0.00016712,13]
[329587204,1718463121660,-771.41624888,6.866e-05,2]
[329587205,1718463121775,-370.49488546,6.866e-05,2]
[329587206,1718463121826,-155.68024123,6.866e-05,2]
[329587207,1718463122057,-245.24112219,6.866e-05,2]
[329587208,1718463122115,-55.00000437,6.866e-05,2]
[329587209,1718463170361,207.12937841,6.866e-05,2]
[329587210,1718463170453,289.68261153,6.866e-05,2]
[329587211,1718463507680,-5345.37866432,0.000238,30]
[329587212,1718463507796,-251.0,0.0002408,35]
[329587213,1718463507840,-243.0,0.0002408,35]
[329587214,1718463507879,-150.5,0.0002408,35]
[329587215,1718463507930,-229.0,0.0002408,35]
[329587216,1718463508047,-585.0,0.00024084,35]
[329587217,1718463508081,-150.5,0.0002409,35]
[329587218,1718463508115,-251.0,0.0002409,35]
[329587219,1718463508145,-188.0,0.0002409,35]
[329587220,1718463508289,-55.0,0.0002409,35]
[329587221,1718463508444,-229.0,0.0002409,35]
[329587222,1718463508488,-301.0,0.00024094,35]
[329587223,1718463508606,-284.0,0.00024094,35]
[329587224,1718463508640,-150.5,0.000241,35]
[329587225,1718463508671,-150.5,0.000241,35]
[329587226,1718463508708,-150.5,0.000241,35]
[329587227,1718463508738,-251.0,0.000241,35]
[329587228,1718463508771,-243.0,0.000241,35]
[329587229,1718463508801,-229.0,0.000241,35]
[329587230,1718463508840,-585.0,0.00024104,35]
[329587231,1718463508878,-109544.62133568,0.00024114,30]
[329587232,1718463635900,585.0,0.00024104,35]
[329587233,1718463662257,500.0,0.00025,60]
[329587234,1718463675067,500.0,0.00025,60]
[329587235,1718463686181,500.0,0.0002475,60]
[329587236,1718463710497,500.0,0.00025,60]
[329587237,1718463732670,362.0,0.00025,60]
[329587238,1718463927914,20000.0,0.00025,60]
[329587240,1718464017027,5000.0,0.00023,30]
[329587250,1718464228667,300.0,0.00025,60]
[329587305,1718464241904,-523.40481974,9.999e-05,2]
[329587306,1718464241917,-370.27079611,0.0001,2]
[329587307,1718464241968,-1254.05894001,0.00013699,2]
[329587308,1718464241998,-1025.39344803,0.00013699,2]
[329587309,1718464242020,-565.90470413,0.00013699,2]
[329587310,1718464242046,-154.64290783,0.00013699,2]
[329587311,1718464242078,-580.947703,0.00014345,2]
[329587312,1718464242094,-10199.18213705,0.00014427,2]
[329587313,1718464242109,-2224.72024922,0.00014427,2]
[329587333,1718464245208,300.0,0.00025,60]
[329587341,1718464249608,-311.20545213,0.00014426,2]
[329587342,1718464249621,-100.66140452,0.00014426,2]
[329587343,1718464249634,-490.3544552,0.00014426,2]
[329587344,1718464249647,-2979.52624754,0.00014427,2]
[329587347,1718464260105,300.0,0.00025,60]
[329587348,1718464266884,300.0,0.00025,60]
[329587352,1718464275901,300.0,0.00025,60]
[329587354,1718464325761,170.0,0.00025,60]
[329587355,1718464332796,7500.0,0.0002,21]
[329587358,1718464347090,251.525,0.00025,60]
[329587360,1718464903147,-1000.0,0.00027678,90]
[329587361,1718464903202,-1000.0,0.00027678,90]
[329587362,1718464903243,-576.299999,0.00027678,90]
[329587363,1718464903289,-1000.0,0.00027678,120]
[329587364,1718464903325,-1000.0,0.00027678,120]
[329587365,1718464903365,-576.299999,0.00027678,120]
[329587366,1718464903409,-160.0,0.00027678,30]
[329587367,1718464903466,-160.0,0.00027678,30]
[329587368,1718464903496,-508.92465316,0.00027678,30]
[329587369,1718464903544,-217.65250342,0.00027678,120]
[329587370,1718464903585,-1168.24142809,0.00027678,30]
[329587371,1718464903624,-156.95972769,0.00027678,120]
[329587372,1718464903658,-229.168988,0.00027678,30]
[329587373,1718464903706,-357.92249936,0.00027678,30]
[329587374,1718464903748,-260.1661252,0.00027678,120]
[329587375,1718464903782,-4955.31603209,0.00027678,120]
[329587376,1718464903824,-200.38416712,0.00027678,60]
[329587377,1718464903862,-2663.98572591,0.00027678,30]
[329587378,1718464911857,-175447.55445575,0.00024114,30]
[329587379,1718464911904,-536.0,0.0002414,35]
[329587380,1718464911957,-536.0,0.0002415,35]
[329587381,1718464912020,-536.0,0.0002416,35]
[329587382,1718464912068,-162.32,0.0002417,35]
[329587383,1718464912115,-380.0,0.0002417,35]
[329587384,1718464912152,-444.0,0.0002417,35]
[329587385,1718464912242,-409.0,0.0002417,35]
[329587386,1718464912297,-150.5,0.0002417,35]
[329587387,1718464912363,-176.0,0.0002417,35]
[329587388,1718464912411,-170.0,0.0002417,35]
[329587389,1718464912462,-160.0,0.0002417,35]
[329587390,1718464912506,-150.5,0.0002418,35]
[329587391,1718464912547,-380.0,0.0002418,35]
[329587392,1718464912597,-444.0,0.0002418,35]
[329587393,1718464912654,-409.0,0.0002418,35]
[329587394,1718464912713,-150.5,0.0002418,35]
[329587395,1718464912761,-176.0,0.0002418,35]
[329587396,1718464912805,-170.0,0.0002418,35]
[329587397,1718464912845,-160.0,0.0002418,35]
[329587398,1718464913033,-150.5,0.0002419,35]
[329587399,1718464913088,-380.0,0.0002419,35]
[329587400,1718464913145,-444.0,0.0002419,35]
[329587401,1718464913214,-409.0,0.0002419,35]
[329587402,1718464913259,-150.5,0.0002419,35]
[329587403,1718464913297,-176.0,0.0002419,35]
[329587404,1718464913369,-170.0,0.0002419,35]
[329587405,1718464913416,-160.0,0.0002419,35]
[329587406,1718464913464,-466.16966744,0.00025,30]
[329587407,1718464913508,-160.0,0.00025208,30]
[329587408,1718464913576,-160.0,0.00025439,31]
[329587409,1718464913633,-325.5531,0.00026038,30]
[329587410,1718464913689,-6019.52602976,0.000266,120]
[329587411,1718464913754,-8909.14971765,0.00027,30]
[329587412,1718464913837,-1056.51,0.00027,30]
[329587413,1718464913869,-20000.0,0.00027,30]
[329587414,1718464913915,-500.0,0.00027397,30]
[329587415,1718464913974,-500.0,0.00027397,30]
[329587416,1718464914096,-500.0,0.00027397,30]
[329587417,1718464914159,-500.0,0.00027397,30]
[329587418,1718464914218,-500.0,0.00027397,30]
[329587419,1718464914262,-500.0,0.00027397,30]
[329587420,1718464914299,-500.0,0.00027397,30]
[329587421,1718464914334,-500.0,0.00027397,30]
[329587422,1718464914393,-500.0,0.00027397,30]
[329587423,1718464914427,-500.0,0.00027397,30]
[329587424,1718464914472,-500.0,0.00027397,30]
[329587425,1718464914526,-500.0,0.00027397,30]
[329587426,1718464914592,-500.0,0.00027397,30]
[329587427,1718464914644,-500.0,0.00027397,30]
[329587428,1718464914686,-500.0,0.00027397,30]
[329587429,1718464914755,-500.0,0.00027397,30]
[329587430,1718464914811,-500.0,0.00027397,30]
[329587431,1718464914854,-572.59054894,0.00027397,30]
[329587432,1718464914960,-441.44841233,0.00027397,30]
[329587433,1718464915003,-2834.17785,0.00027397,120]
[329587434,1718464915067,-228.6,0.000275,30]
[329587435,1718464915115,-1670.8835999,0.000275,30]
[329587436,1718464915173,-624.9229047,0.000275,30]
[329587437,1718464915264,-536.0,0.0002757,35]
[329587438,1718464915331,-444.0,0.0002757,35]
[329587439,1718464915374,-176.0,0.0002757,35]
[329587440,1718464915474,-170.0,0.0002757,35]
[329587441,1718464915521,-160.0,0.0002757,35]
[329587442,1718464915565,-536.0,0.0002758,35]
[329587443,1718464915655,-444.0,0.0002758,35]
[329587444,1718464915742,-176.0,0.0002758,35]
[329587445,1718464915797,-170.0,0.0002758,35]
[329587446,1718464915843,-160.0,0.0002758,35]
[329587447,1718464915875,-536.0,0.0002759,35]
[329587448,1718464915915,-444.0,0.0002759,35]
[329587449,1718464915954,-176.0,0.0002759,35]
[329587450,1718464915990,-170.0,0.0002759,35]
[329587451,1718464916019,-160.0,0.0002759,35]
[329587452,1718464916050,-380.0,0.0002767,35]
[329587453,1718464916100,-409.0,0.0002767,35]
[329587454,1718464916137,-380.0,0.0002768,35]
[329587455,1718464916170,-409.0,0.0002768,35]
[329587456,1718464916217,-206.82,0.0002768,35]
[329587457,1718464916249,-380.0,0.0002769,35]
[329587458,1718464916282,-409.0,0.0002769,35]
[329587459,1718464916319,-150.5,0.0002769,35]
[329587460,1718464916373,-500.0,0.00028,120]
[329587461,1718464916414,-1000.0,0.00028,120]
[329587462,1718464916475,-200.0,0.00028486,120]
[329587463,1718464916514,-346.91721198,0.0002892,30]
[329587464,1718464916554,-12140.42254158,0.00029,30]
[329587465,1718464916601,-1000.26514114,0.00029,120]
[329587466,1718464916657,-267.57065636,0.0003,30]
[329587467,1718464916710,-155.02170304,0.0003,30]
[329587468,1718464916739,-201.419243,0.0003,120]
[329587469,1718464916784,-860.98168825,0.0003,120]
[329587470,1718464916844,-11236.25859312,0.0003,120]
[329587471,1718464916922,-202.16374478,0.0003,30]
[329587472,1718464916978,-500.0,0.0003,120]
[329587473,1718464917029,-400.0,0.00030137,30]
[329587474,1718464917078,-2616.33617341,0.00031233,30]
[329587475,1718464917107,-130032.28156038,0.000315,120]
[329587476,1718464917150,-2834.17785,0.00031963,120]
[329587477,1718464917187,-20306.867454,0.00032,30]
[329587478,1718464917240,-200.0,0.00032357,120]
[329587479,1718464917285,-405.48609165,0.00032877,30]
[329587480,1718464917346,-720.0,0.00033,30]
[329587481,1718464917413,-1000.0,0.00033,30]
[329587482,1718464917452,-300.0,0.00034,120]
[329587483,1718464917498,-1000.0,0.00034,30]
[329587484,1718464917547,-1000.0,0.000348,60]
[329587485,1718464917588,-19137.9909552,0.000349,30]
[329587486,1718464917635,-354.15470379,0.00035,120]
[329587487,1718464917739,-530.13936145,0.00035,120]
[329587488,1718464917797,-13143.0,0.00035,120]
[329587489,1718464917858,-1000.0,0.00035,30]
[329587490,1718464917924,-6644.41987016,0.00035,120]
[329587491,1718464917957,-7498.65876389,0.00035,120]
[329587492,1718464917992,-5591.61834366,0.00035,120]
[329587493,1718464918026,-5962.16529291,0.00035,60]
[329587494,1718464918076,-1002.43753204,0.00035,30]
[329587495,1718464918119,-7432.0,0.00035,30]
[329587496,1718464918153,-1439.58899526,0.000352,120]
[329587497,1718464927332,274.32,0.000275,30]
[329587498,1718465192490,1804.9618805,5.829e-05,2]
[329587510,1718465254102,7195.0381195,5.829e-05,2]
[329587511,1718465254156,9000.0,5.829e-05,2]
[329587512,1718465254207,5.23646144,5.829e-05,2]
[329587513,1718465259953,259.3568637,5.821e-05,2]
[329587514,1718465268121,8735.40667486,5.829e-05,2]
[329587515,1718465268198,215.59797983,5.829e-05,2]
[329587516,1718465268263,3008.96601665,5.829e-05,2]
[329587517,1718465272264,2347.50927568,5.828e-05,2]
[329587518,1718465272810,155.01550155,5.828e-05,2]
[329587519,1718465273520,155.01550155,5.828e-05,2]
[329587520,1718465275183,928.09761947,5.828e-05,2]
[329587521,1718465322270,-317.7123937,6.809e-05,2]
[329587522,1718465322340,-272.7344237,6.809e-05,2]
[329587523,1718465322424,-106.8327274,6.809e-05,2]
[329587524,1718465322528,-52.33567296,6.809e-05,2]
[329587525,1718465322628,-435.05603553,6.809e-05,2]
[329587526,1718465347441,-720.97296987,6.805e-05,2]
[329587527,1718465347629,-720.97296987,6.805e-05,2]
[329587528,1718465372290,-516.125201,6.803e-05,2]
[329587529,1718465372355,-233.68668766,6.804e-05,2]
[329587530,1718465372497,-694.41093181,6.804e-05,2]
[329587531,1718465372568,-55.40095685,6.804e-05,2]
[329587532,1718465385153,-456.91543891,6.802e-05,2]
[329587533,1718465385211,-524.76569402,6.803e-05,2]
[329587534,1718465385263,-153.13442273,6.804e-05,2]
[329587535,1718465385328,-660.45293371,6.804e-05,2]
[329587536,1718465385392,-693.03407038,6.804e-05,2]
[329587537,1718465385454,-42133.2060422,6.804e-05,2]
[329587538,1718465385500,-46661.52391703,6.804e-05,2]
[329587539,1718465385562,-77.11748468,6.805e-05,2]
[329587540,1718465385610,-187.51087984,6.805e-05,2]
[329587541,1718465385657,-1912.47554364,6.805e-05,2]
[329587542,1718465385714,-310.02170304,6.805e-05,2]
[329587543,1718465385757,-155.01395126,6.805e-05,2]
[329587544,1718465385810,-53414.57519956,6.805e-05,2]
[329587545,1718465397320,-282.68764268,6.801e-05,2]
[329587546,1718465397387,-497.11672153,6.801e-05,2]
[329587547,1718465397464,-311.69603691,6.801e-05,2]
[329587548,1718465398713,585.0,0.00024084,35]
[329587594,1718465436641,-7924.74626995,6.8e-05,2]
[329587595,1718465436667,-634.2564107,6.801e-05,2]
[329587596,1718465436684,-11105.83397635,6.801e-05,2]
[329587597,1718465436707,-182.15079663,6.801e-05,2]
[329587598,1718465436755,-2038.35365167,6.802e-05,2]
[329587599,1718465436782,-929.00478026,6.803e-05,2]
[329587600,1718465436796,-188.71823006,6.804e-05,2]
[329587601,1718465436810,-155.01395126,6.804e-05,2]
[329587602,1718465436835,-300.0,6.804e-05,2]
[329587603,1718465436892,-272.51996637,6.81e-05,2]
[329587604,1718465436934,-158.95171902,6.81e-05,2]
[329587605,1718465436955,-215.6839982,6.811e-05,2]
[329587606,1718465436977,-1008.04930092,6.815e-05,2]
[329587607,1718465436995,-236.24087132,6.815e-05,2]
[329587608,1718465437008,-2777.06709069,6.841e-05,2]
[329587609,1718465437020,-231.8799177,6.849e-05,2]
[329587610,1718465437040,-285.7743724,7.393e-05,2]
[329587611,1718465437068,-186.55408871,7.394e-05,2]
[329587612,1718465437100,-53836.03475998,7.394e-05,2]
[329587613,1718465437112,-149.37720595,7.395e-05,2]
[329587614,1718465437137,-865.58040525,7.395e-05,2]
[329587680,1718465442348,-504.10581322,7.395e-05,2]
[329587682,1718465442360,-162.46610913,7.395e-05,2]
[329587683,1718465442380,-1911.6439183,7.395e-05,2]
[329587686,1718465442396,-456.72584541,7.395e-05,2]
[329587687,1718465442407,-411.67124189,7.395e-05,2]
[329587689,1718465442424,-45.87159888,7.395e-05,2]
[329587692,1718465442439,-109.13615151,7.395e-05,2]
[329587693,1718465442449,-208.44060516,7.395e-05,2]
[329587696,1718465442465,-659.92725719,7.395e-05,2]
[329587697,1718465442475,-1017.76686438,7.395e-05,2]
[329587699,1718465442491,-24869.75199398,7.395e-05,2]
[329587701,1718465442513,-16245.68718384,7.395e-05,2]
[329587703,1718465442529,-693.03407038,7.396e-05,2]
[329587705,1718465442568,-46661.52391703,7.396e-05,2]
[329587706,1718465442580,-24900.0,7.397e-05,2]
[329587708,1718465442592,-188.0,7.484e-05,2]
[329587710,1718465442607,-2777.06709065,8.881e-05,2]
[329587712,1718465442636,-216.87670251,8.881e-05,2]
[329587715,1718465442668,-222.31738349,8.881e-05,2]
[329587717,1718465442704,-161.21119232,8.881e-05,2]
[329587718,1718465442734,-174.47194654,8.881e-05,2]
[329587719,1718465442789,-165.85449308,8.881e-05,2]
[329587720,1718465442804,-931.99842666,9.895e-05,2]
[329587721,1718465442816,-310.0,9.985e-05,2]
[329587722,1718465442865,-189.28357931,9.986e-05,2]
[329587723,1718465442913,-309.89770096,9.987e-05,2]
[329587724,1718465442939,-9594.02615296,9.991e-05,2]
[329587725,1718465442977,-775.00790126,9.994e-05,2]
[329587726,1718465443023,-310.01085076,9.999e-05,2]
[329587727,1718465443053,-2777.06709065,0.00010821,2]
[329587728,1718465443069,-152.34,0.00010959,2]
[329587729,1718465443126,-761.7,0.00010959,2]
[329587730,1718465443158,-2777.06709065,0.0001286,2]
[329587731,1718465443244,-3044.8764271,0.000129,2]
[329587732,1718465443313,-3000.0,0.00013699,2]
[329587733,1718465443346,-381.754301,0.00013699,2]
[329587734,1718465443374,-10547.48179918,0.00014423,2]
[329587735,1718465443421,-2.06699967,0.00014423,2]
[329587736,1718465443476,-193.12596978,0.00014423,2]
[329587737,1718465443491,-140.83281198,0.00014423,2]
[329587765,1718465446283,873.5,0.0002408,35]
[329587819,1718465458428,-999.9933705,7.394e-05,2]
[329587821,1718465458447,-498.53832264,7.394e-05,2]
[329587822,1718465458460,-182.15079663,9.999e-05,2]
[329587823,1718465458472,-310.01240105,9.999e-05,2]
[329587825,1718465458485,-3032.82847968,0.00014422,2]
[329587833,1718465462683,-2487.19451827,0.00014422,2]
[329587834,1718465462701,-10905.03429737,0.00014422,2]
[329587835,1718465462730,-16.97450133,0.00014423,2]
[329587836,1718465462767,-1502.1054915,0.00014423,2]
[329587837,1718465462785,-2475.76048699,0.00014423,2]
[329587838,1718465462845,-286.00890419,0.00014423,2]
[329587839,1718465462869,-216.42006283,0.00014423,2]
[329587840,1718465462917,-164.93027714,0.00014423,2]
[329587841,1718465462929,-179.01873581,0.00014423,2]
[329587842,1718465462968,-686.71206999,0.00014423,2]
[329587843,1718465462992,-2644.05459629,0.00014423,2]
[329587844,1718465463043,-530.51032022,0.00014424,2]
[329587845,1718465463077,-1984.62608834,0.00014424,2]
[329587846,1718465463089,-722.70061891,0.00014424,2]
[329587847,1718465463101,-1343.77512204,0.00014424,2]
[329587848,1718465463112,-1062.78668661,0.000149,2]
[329587849,1718465463122,-464.80118056,0.00014998,2]
[329587850,1718465463148,-252.45258435,0.00014998,2]
[329587851,1718465463161,-692.43502348,0.00014998,2]
[329587852,1718465463176,-1581.90787679,0.00014999,2]
[329587853,1718465463193,-24189.74753405,0.00014999,2]
[329587854,1718465463231,-25828.8369718,0.00014999,2]
[329587855,1718465463264,-1101.53149693,0.00015,2]
[329587856,1718465463280,-155.02170304,0.00015,2]
[329587857,1718465463300,-1692.62660858,0.00015,2]
[329587858,1718465463318,-1303.29757194,0.00015,2]
[329587859,1718465463452,-946.56236145,0.00015,2]
[329587860,1718465463464,-35478.57810534,0.00015,2]
[329587861,1718465463477,-2413.03400432,0.00015,2]
[329587862,1718465463505,-2819.17925605,0.00015,2]
[329587863,1718465463520,-856.731103,0.00015,2]
[329587864,1718465463556,-856.731103,0.00015,2]
[329587865,1718465463573,-151.0,0.00015,2]
[329587866,1718465463589,-292.6897656,0.00015154,2]
[329587867,1718465463604,-292.6897656,0.00015154,2]
[329587868,1718465463620,-153.0,0.00015154,2]
[329587869,1718465463650,-292.4191533,0.00015154,2]
[329587870,1718465463672,-205.3823407,0.00015154,2]
[329587871,1718465463692,-292.6897656,0.00015154,2]
[329587872,1718465463720,-489.52678547,0.000156,2]
[329587873,1718465463734,-225.31765911,0.00015659,2]